fUST/lending_fUST_20250523
["ID","MTS","AMOUNT","RATE_DAILY","PERIOD"]
[362035007,1747942239199,-430.0,0.0002,2]
[362035008,1747942239208,-430.0,0.0002,2]
[362035009,1747942239218,-430.0,0.0002,2]
[362035010,1747942239228,-430.0,0.0002,2]
[362035011,1747942239238,-430.0,0.0002,2]
[362035012,1747942239248,-430.0,0.0002,2]
[362035013,1747942239258,-430.0,0.0002,2]
[362035014,1747942239268,-193.95723733,0.0002,2]
[362035015,1747942239278,-430.0,0.0002,2]
[362035016,1747942239288,-772.05,0.0002,2]
[362035017,1747942239297,-431.5944842,0.0002,2]
[362035018,1747942239307,-430.0,0.0002,2]
[362035019,1747942239317,-430.0,0.0002,2]
[362035020,1747942239326,-454.73,0.0002,2]
[362035021,1747942239337,-916.06,0.0002,2]
[362035022,1747942239346,-430.0,0.0002,2]
[362035023,1747942239356,-430.0,0.0002,2]
[362035024,1747942239366,-430.0,0.0002,2]
[362035025,1747942239375,-430.0,0.0002,2]
[362035026,1747942239386,-467.59,0.0002,2]
[362035027,1747942239395,-750.79,0.0002,2]
[362035028,1747942239405,-1248.14,0.0002,2]
[362035029,1747942239415,-430.0,0.0002,2]
[362035030,1747942239425,-430.0,0.0002,2]
[362035031,1747942239435,-430.0,0.0002,2]
[362035032,1747942239445,-430.0,0.0002,2]
[362035033,1747942239455,-486.13089053,0.0002,2]
[362035034,1747942239464,-244.31854735,0.0002,2]
[362035035,1747942239474,-430.0,0.0002,2]
[362035036,1747942239483,-430.0,0.0002,2]
[362035037,1747942239494,-525.6,0.0002,2]
[362035038,1747942239503,-430.0,0.0002,2]
[362035039,1747942239513,-430.0,0.0002,2]
[362035040,1747942239522,-430.0,0.0002,2]
[362035041,1747942239533,-280.40054389,0.0002,2]
[362035042,1747942239542,-430.0,0.0002,2]
[362035043,1747942239552,-430.0,0.0002,2]
[362035044,1747942239566,-430.0,0.0002,2]
[362035045,1747942239575,-471.39,0.0002,2]
[362035046,1747942239585,-430.0,0.0002,2]
[362035047,1747942239595,-430.0,0.0002,2]
[362035048,1747942239606,-430.0,0.0002,2]
[362035049,1747942239616,-562.34,0.0002,2]
[362035050,1747942239625,-847.02,0.0002,2]
[362035051,1747942239635,-430.0,0.0002,2]
[362035052,1747942239646,-430.0,0.0002,2]
[362035053,1747942239656,-974.05,0.0002,2]
[362035054,1747942239668,-430.0,0.0002,2]
[362035055,1747942239678,-496.29,0.0002,2]
[362035056,1747942239687,-484.89,0.0002,2]
[362035057,1747942239697,-430.0,0.0002,2]
[362035058,1747942239706,-430.0,0.0002,2]
[362035059,1747942239716,-500.0,0.00020087,2]
[362035060,1747942239726,-206.543569,0.00020187,2]
[362035061,1747942239736,-481.53351217,0.000202,2]
[362035062,1747942239745,-481.53351217,0.000202,2]
[362035063,1747942239755,-1000.0,0.00020208,2]
[362035064,1747942239764,-481.53351217,0.00020245,2]
[362035065,1747942239774,-430.0,0.00020273,2]
[362035066,1747942239783,-430.0,0.00020273,2]
[362035067,1747942239793,-430.0,0.00020273,2]
[362035068,1747942239802,-430.0,0.00020273,2]
[362035069,1747942239812,-291.46210232,0.00020273,2]
[362035070,1747942239822,-430.0,0.00020273,2]
[362035072,1747942239831,-430.0,0.00020273,2]
[362035074,1747942239841,-430.0,0.00020273,2]
[362035076,1747942239852,-430.0,0.00020273,2]
[362035078,1747942239862,-772.05,0.00020273,2]
[362035080,1747942239871,-430.0,0.00020273,2]
[362035082,1747942239882,-430.0,0.00020273,2]
[362035084,1747942239891,-454.73,0.00020273,2]
[362035087,1747942239902,-916.06,0.00020273,2]
[362035088,1747942239911,-430.0,0.00020273,2]
[362035090,1747942239920,-430.0,0.00020273,2]
[362035093,1747942239930,-430.0,0.00020273,2]
[362035095,1747942239940,-430.0,0.00020273,2]
[362035097,1747942239950,-467.59,0.00020273,2]
[362035099,1747942239960,-750.79,0.00020273,2]
[362035101,1747942239969,-1248.14,0.00020273,2]
[362035103,1747942239979,-420.89237845,0.00020273,2]
[362035105,1747942239988,-430.0,0.00020273,2]
[362035107,1747942239998,-430.0,0.00020273,2]
[362035110,1747942240009,-430.0,0.00020273,2]
[362035113,1747942240019,-430.0,0.00020273,2]
[362035115,1747942240029,-430.0,0.00020273,2]
[362035117,1747942240039,-525.6,0.00020273,2]
[362035119,1747942240049,-430.0,0.00020273,2]
[362035122,1747942240058,-430.0,0.00020273,2]
[362035124,1747942240068,-430.0,0.00020273,2]
[362035126,1747942240078,-430.0,0.00020273,2]
[362035128,1747942240087,-430.0,0.00020273,2]
[362035130,1747942240098,-430.0,0.00020273,2]
[362035132,1747942240107,-471.39,0.00020273,2]
[362035134,1747942240118,-430.0,0.00020273,2]
[362035136,1747942240127,-430.0,0.00020273,2]
[362035138,1747942240136,-430.0,0.00020273,2]
[362035140,1747942240146,-562.34,0.00020273,2]
[362035142,1747942240155,-847.02,0.00020273,2]
[362035144,1747942240165,-430.0,0.00020273,2]
[362035146,1747942240175,-430.0,0.00020273,2]
[362035148,1747942240185,-974.05,0.00020273,2]
[362035150,1747942240194,-430.0,0.00020273,2]
[362035152,1747942240203,-496.29,0.00020273,2]
[362035153,1747942240213,-484.89,0.00020273,2]
[362035155,1747942240223,-430.0,0.00020273,2]
[362035157,1747942240232,-430.0,0.00020273,2]
[362035159,1747942240242,-481.53351217,0.00020417,3]
[362035162,1747942240251,-615.5835344,0.00020455,2]
[362035164,1747942240262,-331.12,0.00020538,3]
[362035166,1747942240272,-430.0,0.00020547,2]
[362035167,1747942240282,-430.0,0.00020547,2]
[362035168,1747942240293,-430.0,0.00020547,2]
[362035169,1747942240302,-430.0,0.00020547,2]
[362035170,1747942240312,-430.0,0.00020547,2]
[362035171,1747942240321,-430.0,0.00020547,2]
[362035172,1747942240331,-490.30756838,0.00020547,2]
[362035174,1747942240340,-430.0,0.00020547,2]
[362035176,1747942240351,-772.05,0.00020547,2]
[362035177,1747942240361,-430.0,0.00020547,2]
[362035179,1747942240371,-430.0,0.00020547,2]
[362035181,1747942240382,-454.73,0.00020547,2]
[362035183,1747942240392,-916.06,0.00020547,2]
[362035185,1747942240401,-430.0,0.00020547,2]
[362035186,1747942240411,-430.0,0.00020547,2]
[362035187,1747942240421,-430.0,0.00020547,2]
[362035188,1747942240431,-430.0,0.00020547,2]
[362035189,1747942240441,-467.59,0.00020547,2]
[362035190,1747942240451,-750.79,0.00020547,2]
[362035191,1747942240461,-1248.14,0.00020547,2]
[362035192,1747942240471,-430.0,0.00020547,2]
[362035193,1747942240482,-430.0,0.00020547,2]
[362035194,1747942240491,-430.0,0.00020547,2]
[362035195,1747942240502,-333.98949752,0.00020547,2]
[362035196,1747942240512,-430.0,0.00020547,2]
[362035197,1747942240522,-525.6,0.00020547,2]
[362035198,1747942240532,-430.0,0.00020547,2]
[362035199,1747942240541,-430.0,0.00020547,2]
[362035200,1747942240551,-430.0,0.00020547,2]
[362035201,1747942240564,-430.0,0.00020547,2]
[362035202,1747942240586,-437.09909859,0.00020547,2]
[362035203,1747942240599,-430.0,0.00020547,2]
[362035204,1747942240611,-471.39,0.00020547,2]
[362035205,1747942240621,-430.0,0.00020547,2]
[362035206,1747942240631,-430.0,0.00020547,2]
[362035207,1747942240642,-430.0,0.00020547,2]
[362035208,1747942240656,-562.34,0.00020547,2]
[362035209,1747942240666,-847.02,0.00020547,2]
[362035210,1747942240676,-430.0,0.00020547,2]
[362035211,1747942240686,-430.0,0.00020547,2]
[362035212,1747942240695,-974.05,0.00020547,2]
[362035213,1747942240705,-430.0,0.00020547,2]
[362035214,1747942240716,-496.29,0.00020547,2]
[362035215,1747942240726,-484.89,0.00020547,2]
[362035216,1747942240735,-430.0,0.00020547,2]
[362035217,1747942240746,-430.0,0.00020547,2]
[362035218,1747942240756,-481.53351217,0.0002059,3]
[362035219,1747942240766,-615.58353441,0.00020684,2]
[362035220,1747942240854,-4106.72764224,0.00020695,2]
[362035221,1747942240865,-1474.59717618,0.00020756,2]
[362035222,1747942240875,-481.53351217,0.00020762,3]
[362035223,1747942240884,-2649.04,0.00020802,3]
[362035224,1747942240893,-1324.52,0.00020802,3]
[362035225,1747942240902,-662.26,0.00020802,3]
[362035226,1747942240911,-250.0,0.00020806,2]
[362035227,1747942240921,-8265.41424334,0.00020812,3]
[362035228,1747942241062,-555.2955501,0.00020812,3]
[362035229,1747942242231,-430.0,0.00019178,2]
[362035230,1747942242242,-430.0,0.00019178,2]
[362035231,1747942242251,-373.88889079,0.00019178,2]
[362035232,1747942242261,-470.0,0.00019178,2]
[362035233,1747942242272,-500.0,0.00019441,2]
[362035234,1747942242282,-500.0,0.00019441,2]
[362035235,1747942242291,-500.0,0.00019441,2]
[362035236,1747942242303,-648.35892753,0.00019441,2]
[362035237,1747942242313,-500.0,0.00019441,2]
[362035238,1747942242323,-500.0,0.00019441,2]
[362035239,1747942242333,-500.0,0.00019441,2]
[362035240,1747942242344,-560.3266639,0.00019441,2]
[362035241,1747942242354,-500.0,0.00019441,2]
[362035242,1747942242364,-500.0,0.00019441,2]
[362035243,1747942242375,-430.0,0.00019452,2]
[362035244,1747942242384,-430.0,0.00019452,2]
[362035245,1747942242395,-1775.45020656,0.00020812,3]
[362035246,1747942242405,-2.15962771,0.00020812,3]
[362035247,1747942242426,-3516.28229565,0.00020812,3]
[362035248,1747942242438,-1779.63807664,0.00020812,3]
[362035249,1747942242448,-430.0,0.00020821,2]
[362035250,1747942242458,-430.0,0.00020821,2]
[362035251,1747942242468,-290.36192336,0.00020821,2]
[362035252,1747942242480,-139.63807664,0.00020821,2]
[362035253,1747942242491,-270.84501158,0.00020821,2]
[362035254,1747942242503,-159.15498842,0.00020821,2]
[362035255,1747942242513,-430.0,0.00020821,2]
[362035256,1747942242524,-430.0,0.00020821,2]
[362035257,1747942242534,-430.0,0.00020821,2]
[362035258,1747942242546,-430.0,0.00020821,2]
[362035259,1747942242556,-430.0,0.00020821,2]
[362035260,1747942242572,-454.73,0.00020821,2]
[362035261,1747942242582,-916.06,0.00020821,2]
[362035262,1747942242592,-430.0,0.00020821,2]
[362035263,1747942242604,-430.0,0.00020821,2]
[362035264,1747942242615,-430.0,0.00020821,2]
[362035265,1747942242625,-30.05501158,0.00020821,2]
[362035266,1747942242676,-430.0,0.00019178,2]
[362035267,1747942242686,-31.36566633,0.00019178,2]
[362035268,1747942242698,-416.65490336,0.00019178,2]
[362035269,1747942242711,-21.97943031,0.00019178,2]
[362035270,1747942242720,-361.13256969,0.00019452,2]
[362035271,1747942242734,-72.37743031,0.00019452,2]
[362035273,1747942242743,-324.56372999,0.00020821,2]
[362035274,1747942242755,-75.38125843,0.00020821,2]
[362035275,1747942242765,-467.59,0.00020821,2]
[362035276,1747942242775,-750.79,0.00020821,2]
[362035277,1747942242786,-1248.14,0.00020821,2]
[362035279,1747942242796,-430.0,0.00020821,2]
[362035280,1747942242806,-430.0,0.00020821,2]
[362035282,1747942242816,-430.0,0.00020821,2]
[362035283,1747942242827,-428.37354333,0.00020821,2]
[362035284,1747942242836,-525.6,0.00020821,2]
[362035285,1747942242848,-430.0,0.00020821,2]
[362035287,1747942242859,-192.6149683,0.00020821,2]
[362035289,1747942242869,-430.0,0.00020821,2]
[362035290,1747942242879,-430.0,0.00020821,2]
[362035291,1747942242889,-430.0,0.00020821,2]
[362035292,1747942242899,-471.39,0.00020821,2]
[362035293,1747942242910,-430.0,0.00020821,2]
[362035294,1747942242920,-430.0,0.00020821,2]
[362035296,1747942242930,-430.0,0.00020821,2]
[362035299,1747942242940,-562.34,0.00020821,2]
[362035300,1747942242951,-847.02,0.00020821,2]
[362035301,1747942242960,-430.0,0.00020821,2]
[362035302,1747942242970,-430.0,0.00020821,2]
[362035303,1747942242981,-974.05,0.00020821,2]
[362035304,1747942242991,-430.0,0.00020821,2]
[362035306,1747942243001,-361.47247022,0.00020821,2]
[362035308,1747942243014,-134.81752978,0.00020821,2]
[362035310,1747942243025,-484.89,0.00020821,2]
[362035312,1747942243035,-406.81331865,0.00020821,2]
[362035352,1747942243461,-430.0,0.00019178,2]
[362035353,1747942243472,-430.0,0.00019178,2]
[362035354,1747942243482,-450.0,0.00019178,2]
[362035355,1747942243492,-437.74,0.00019452,2]
[362035356,1747942243503,-430.0,0.00019452,2]
[362035357,1747942243514,-23.18668135,0.00020821,2]
[362035358,1747942243524,-430.0,0.00020821,2]
[362035359,1747942243534,-153.0,0.00020877,2]
[362035360,1747942243544,-777.3677384,0.00020877,2]
[362035361,1747942243555,-236.535339,0.00020877,2]
[362035362,1747942243567,-351.4340298,0.00020877,2]
[362035363,1747942243577,-176.0716068,0.00020877,2]
[362035364,1747942243587,-481.53351217,0.00020934,4]
[362035365,1747942243598,-777.2047748,0.00021,3]
[362035366,1747942243611,-418.86066635,0.00021,3]
[362035367,1747942243623,-519.47999996,0.00021,3]
[362035368,1747942243636,-25957.89687947,0.00021,3]
[362035369,1747942243649,-742.95507456,0.00021,3]
[362035370,1747942243661,-625.0,0.00021,3]
[362035371,1747942243674,-1886.43682295,0.00021,3]
[362035373,1747942243684,-500.0,0.00021091,2]
[362035375,1747942243694,-319.84566411,0.00021095,2]
[362035376,1747942243704,-430.0,0.00021095,2]
[362035377,1747942243715,-430.0,0.00021095,2]
[362035378,1747942243725,-430.0,0.00021095,2]
[362035379,1747942243735,-430.0,0.00021095,2]
[362035380,1747942243745,-414.09111951,0.00021095,2]
[362035381,1747942243755,-430.0,0.00021095,2]
[362035382,1747942243766,-430.0,0.00021095,2]
[362035383,1747942243776,-454.73,0.00021095,2]
[362035384,1747942243786,-916.06,0.00021095,2]
[362035385,1747942243796,-430.0,0.00021095,2]
[362035386,1747942243806,-430.0,0.00021095,2]
[362035387,1747942243816,-430.0,0.00021095,2]
[362035388,1747942243826,-430.0,0.00021095,2]
[362035389,1747942243836,-467.59,0.00021095,2]
[362035390,1747942243846,-750.79,0.00021095,2]
[362035391,1747942243856,-1248.14,0.00021095,2]
[362035392,1747942243866,-176.01127319,0.00021095,2]
[362035393,1747942243875,-430.0,0.00021095,2]
[362035394,1747942243886,-430.0,0.00021095,2]
[362035395,1747942243895,-525.6,0.00021095,2]
[362035396,1747942243906,-430.0,0.00021095,2]
[362035397,1747942243915,-430.0,0.00021095,2]
[362035398,1747942243926,-430.0,0.00021095,2]
[362035399,1747942243936,-430.0,0.00021095,2]
[362035400,1747942243946,-471.39,0.00021095,2]
[362035401,1747942243957,-430.0,0.00021095,2]
[362035402,1747942243966,-430.0,0.00021095,2]
[362035403,1747942243976,-430.0,0.00021095,2]
[362035404,1747942243986,-562.34,0.00021095,2]
[362035405,1747942243996,-847.02,0.00021095,2]
[362035406,1747942244006,-373.70820533,0.00021095,2]
[362035407,1747942244016,-430.0,0.00021095,2]
[362035408,1747942244026,-974.05,0.00021095,2]
[362035409,1747942244036,-430.0,0.00021095,2]
[362035410,1747942244046,-496.29,0.00021095,2]
[362035411,1747942244056,-484.89,0.00021095,2]
[362035412,1747942244066,-430.0,0.00021095,2]
[362035413,1747942244076,-430.0,0.00021095,2]
[362035414,1747942244086,-250.0,0.000211,2]
[362035415,1747942244096,-481.53351217,0.00021107,4]
[362035416,1747942244106,-481.53351217,0.00021279,5]
[362035417,1747942244116,-430.0,0.00021369,2]
[362035418,1747942244127,-430.0,0.00021369,2]
[362035419,1747942244136,-430.0,0.00021369,2]
[362035420,1747942244146,-430.0,0.00021369,2]
[362035421,1747942244157,-400.0042741,0.00021369,2]
[362035422,1747942244166,-430.0,0.00021369,2]
[362035423,1747942244176,-454.73,0.00021369,2]
[362035424,1747942244186,-916.06,0.00021369,2]
[362035425,1747942244197,-430.0,0.00021369,2]
[362035426,1747942244208,-430.0,0.00021369,2]
[362035427,1747942244218,-419.69774903,0.00021369,2]
[362035428,1747942244228,-191.20076876,0.00021369,2]
[362035429,1747942244238,-467.59,0.00021369,2]
[362035430,1747942244249,-750.79,0.00021369,2]
[362035431,1747942244265,-1248.14,0.00021369,2]
[362035432,1747942244275,-430.0,0.00021369,2]
[362035433,1747942244287,-430.0,0.00021369,2]
[362035434,1747942244298,-525.6,0.00021369,2]
[362035435,1747942244308,-430.0,0.00021369,2]
[362035436,1747942244318,-430.0,0.00021369,2]
[362035437,1747942244329,-430.0,0.00021369,2]
[362035438,1747942244339,-430.0,0.00021369,2]
[362035439,1747942244350,-471.39,0.00021369,2]
[362035440,1747942244360,-430.0,0.00021369,2]
[362035441,1747942244370,-430.0,0.00021369,2]
[362035442,1747942244380,-430.0,0.00021369,2]
[362035443,1747942244394,-562.34,0.00021369,2]
[362035444,1747942244404,-847.02,0.00021369,2]
[362035445,1747942244414,-430.0,0.00021369,2]
[362035446,1747942244425,-974.05,0.00021369,2]
[362035447,1747942244436,-430.0,0.00021369,2]
[362035448,1747942244446,-496.29,0.00021369,2]
[362035449,1747942244456,-484.89,0.00021369,2]
[362035450,1747942244466,-57.33659675,0.00021369,2]
[362035451,1747942244479,-372.66340325,0.00021369,2]
[362035452,1747942244489,-430.0,0.00021369,2]
[362035453,1747942244500,-160.0,0.00021378,2]
[362035454,1747942244511,-160.0,0.00021378,2]
[362035455,1747942244521,-422.78357425,0.00021378,2]
[362035456,1747942244531,-12638.53552368,0.00021379,2]
[362035457,1747942244542,-212.4501065,0.00021379,2]
[362035458,1747942244552,-894.64583333,0.00021379,2]
[362035459,1747942244563,-481.53351217,0.00021452,5]
[362035460,1747942244574,-500.0,0.00021487,2]
[362035461,1747942244585,-500.0,0.00021487,2]
[362035462,1747942244595,-500.0,0.00021487,2]
[362035463,1747942244607,-500.0,0.00021487,2]
[362035464,1747942244617,-500.0,0.00021487,2]
[362035465,1747942244627,-500.0,0.00021487,2]
[362035466,1747942244638,-47.73313718,0.00021487,2]
[362035467,1747942244652,-552.26686282,0.00021487,2]
[362035468,1747942244663,-750.03857928,0.00021543,2]
[362035487,1747942246412,-430.0,0.00019178,2]
[362035488,1747942246423,-516.04,0.00019178,2]
[362035489,1747942246434,-430.0,0.00019452,2]
[362035491,1747942246444,-349.96142072,0.00021543,2]
[362035493,1747942246454,-500.0,0.00021623,2]
[362035495,1747942246464,-500.0,0.00021623,2]
[362035497,1747942246475,-500.0,0.00021623,2]
[362035512,1747942246487,-500.0,0.00021623,2]
[362035515,1747942246634,-500.0,0.00021623,2]
[362035517,1747942246645,-246.71965941,0.00021623,2]
[362035520,1747942246656,-481.53351217,0.00021624,5]
[362035522,1747942246665,-415.48962466,0.00021629,2]
[362035523,1747942246675,-80.25578304,0.00021629,2]
[362035526,1747942246687,-419.74421696,0.00021629,2]
[362035528,1747942246697,-500.0,0.00021629,2]
[362035530,1747942246706,-430.0,0.00021643,2]
[362035531,1747942246716,-430.0,0.00021643,2]
[362035532,1747942246726,-296.03844325,0.00021643,2]
[362035533,1747942246735,-478.96,0.00021643,2]
[362035534,1747942246745,-430.0,0.00021643,2]
[362035535,1747942246755,-454.73,0.00021643,2]
[362035536,1747942246765,-916.06,0.00021643,2]
[362035537,1747942246775,-430.0,0.00021643,2]
[362035538,1747942246785,-430.0,0.00021643,2]
[362035539,1747942246794,-467.59,0.00021643,2]
[362035540,1747942246803,-750.79,0.00021643,2]
[362035541,1747942246814,-1248.14,0.00021643,2]
[362035542,1747942246824,-528.57143248,0.00021643,2]
[362035543,1747942246833,-430.0,0.00021643,2]
[362035544,1747942246844,-525.6,0.00021643,2]
[362035545,1747942246854,-430.0,0.00021643,2]
[362035546,1747942246863,-430.0,0.00021643,2]
[362035547,1747942246873,-213.19069367,0.00021643,2]
[362035548,1747942246883,-430.0,0.00021643,2]
[362035549,1747942246893,-471.39,0.00021643,2]
[362035550,1747942246903,-331.26814264,0.00021643,2]
[362035551,1747942246920,-98.73185736,0.00021643,2]
[362035552,1747942246929,-172.78568081,0.00021643,2]
[362035553,1747942246941,-257.21431919,0.00021643,2]
[362035554,1747942246951,-430.0,0.00021643,2]
[362035555,1747942246961,-562.34,0.00021643,2]
[362035556,1747942246970,-418.64577772,0.00021643,2]
[362035557,1747942246987,-428.37422228,0.00021643,2]
[362035558,1747942247002,-430.0,0.00021643,2]
[362035559,1747942247012,-297.97534511,0.00021643,2]
[362035560,1747942247024,-676.07465489,0.00021643,2]
[362035561,1747942247034,-430.0,0.00021643,2]
[362035562,1747942247043,-89.38534511,0.00021643,2]
[362035563,1747942414260,217.812509,0.00013699,2]
[362035567,1747942791355,-271.0,0.00017,2]
[362035668,1747943432524,-6035.76732528,0.000168,2]
[362035670,1747943432536,-1744.0,0.00017,2]
[362035672,1747943432547,-555.2955501,0.00017917,2]
[362035674,1747943432558,-300.0,0.00017921,2]
[362035677,1747943432570,-300.0,0.00017921,2]
[362035679,1747943432581,-300.0,0.00017921,2]
[362035682,1747943432598,-1200.0,0.00017921,2]
[362035684,1747943432609,-24900.0,0.00017922,2]
[362035686,1747943432622,-662.37085689,0.00018667,30]
[362035689,1747943432635,-300.0,0.00018667,2]
[362035691,1747943432647,-1661.96433885,0.000189,2]
[362035693,1747943432659,-3540.69175988,0.00019176,2]
[362035698,1747943432678,-5310.0094757,0.00019176,2]
[362035701,1747943432691,-160.0,0.00019177,2]
[362035707,1747943432702,-500.0,0.00019177,2]
[362035711,1747943432715,-500.0,0.00019177,2]
[362035716,1747943432726,-500.0,0.00019177,2]
[362035719,1747943432737,-631.96081229,0.00019177,2]
[362035722,1747943432749,-500.0,0.00019177,2]
[362035727,1747943432761,-306.39838118,0.00019177,2]
[362035730,1747943432772,-500.0,0.00019177,2]
[362035733,1747943432783,-500.0,0.00019177,2]
[362035736,1747943432795,-500.0,0.00019177,2]
[362035738,1747943432807,-500.0,0.00019177,2]
[362035740,1747943432819,-430.0,0.00019178,2]
[362035743,1747943432831,-450.0,0.00019178,2]
[362035745,1747943432842,-450.0,0.00019178,2]
[362035747,1747943432854,-450.0,0.00019178,2]
[362035750,1747943432868,-450.0,0.00019178,2]
[362035752,1747943432879,-450.0,0.00019178,2]
[362035754,1747943432891,-450.0,0.00019178,2]
[362035756,1747943432902,-430.0,0.00019178,2]
[362035759,1747943432914,-450.0,0.00019178,2]
[362035761,1747943432925,-400.0,0.00019178,2]
[362035763,1747943432937,-431.2,0.00019178,2]
[362035765,1747943432948,-182.25591215,0.00019178,2]
[362035767,1747943432961,-239.77,0.00019178,2]
[362035769,1747943432973,-430.0,0.00019178,2]
[362035771,1747943432984,-300.0,0.00019178,2]
[362035774,1747943432996,-450.0,0.00019178,2]
[362035776,1747943433007,-450.0,0.00019178,2]
[362035778,1747943433019,-430.0,0.00019178,2]
[362035780,1747943433031,-430.0,0.00019178,2]
[362035782,1747943433044,-430.0,0.00019178,2]
[362035785,1747943433057,-430.0,0.00019178,2]
[362035787,1747943433069,-430.0,0.00019178,2]
[362035789,1747943433080,-450.0,0.00019178,2]
[362035791,1747943433093,-430.0,0.00019178,2]
[362035794,1747943433104,-300.0,0.00019178,2]
[362035796,1747943433116,-430.0,0.00019178,2]
[362035798,1747943433128,-578.54649738,0.00019178,2]
[362035800,1747943433139,-300.0,0.00019178,2]
[362035802,1747943433151,-430.0,0.00019178,2]
[362035805,1747943433162,-430.0,0.00019178,2]
[362035807,1747943433173,-430.0,0.00019178,2]
[362035809,1747943433184,-430.0,0.00019178,2]
[362035811,1747943433195,-423.52,0.00019178,2]
[362035813,1747943433206,-430.0,0.00019178,2]
[362035815,1747943433218,-450.0,0.00019178,2]
[362035818,1747943433229,-430.0,0.00019178,2]
[362035820,1747943433240,-430.0,0.00019178,2]
[362035822,1747943433251,-430.0,0.00019178,2]
[362035824,1747943433263,-430.0,0.00019178,2]
[362035827,1747943433274,-430.0,0.00019178,2]
[362035829,1747943433286,-184.28462499,0.00019178,2]
[362035831,1747943433297,-450.0,0.00019178,2]
[362035833,1747943433309,-430.0,0.00019178,2]
[362035836,1747943433320,-200.0,0.00019178,2]
[362035838,1747943433332,-430.0,0.00019178,2]
[362035840,1747943433343,-300.0,0.00019178,2]
[362035842,1747943433355,-300.0,0.00019178,2]
[362035844,1747943433366,-430.0,0.00019178,2]
[362035847,1747943433377,-300.66701183,0.00019178,2]
[362035849,1747943433388,-200.0,0.00019178,2]
[362035851,1747943433399,-300.0,0.00019178,2]
[362035853,1747943433410,-250.0,0.00019178,2]
[362035855,1747943433421,-430.0,0.00019178,2]
[362035856,1747943433431,-200.0,0.00019178,2]
[362035857,1747943433442,-430.0,0.00019178,2]
[362035858,1747943433453,-127.63438778,0.00019178,2]
[362035859,1747943433469,-302.36561222,0.00019178,2]
[362035861,1747943433481,-300.0,0.00019178,2]
[362035863,1747943433491,-200.0,0.00019178,2]
[362035865,1747943433501,-300.0,0.00019178,2]
[362035867,1747943433513,-430.0,0.00019178,2]
[362035870,1747943433524,-200.0,0.00019178,2]
[362035872,1747943433535,-430.0,0.00019178,2]
[362035874,1747943433546,-430.0,0.00019178,2]
[362035876,1747943433558,-200.0,0.00019178,2]
[362035879,1747943433569,-430.0,0.00019178,2]
[362035881,1747943433580,-430.0,0.00019178,2]
[362035913,1747943433871,-430.0,0.00019178,2]
[362035918,1747943433904,-450.0,0.00019178,2]
[362035920,1747943433920,-430.0,0.00019178,2]
[362035922,1747943433930,-430.0,0.00019178,2]
[362035924,1747943433940,-430.0,0.00019178,2]
[362035926,1747943433950,-430.0,0.00019178,2]